bitfinex/quotes_ETHUSD_20240825
["timestamp","ask_amount","ask_price","bid_price","bid_amount"]
[1724546038219,1.10050146,2775.2,2775.0,19.79]
[1724546039195,3.009,2775.1,2774.8,3.60383]
[1724546041000,3.009,2775.1,2774.8,7.20761]
[1724546041630,3.009,2775.1,2774.8,3.60378]
[1724546041799,3.60284,2775.6,2774.6,3.60407]
[1724546041800,3.009,2774.9,2774.6,3.60407]
[1724546041978,3.009,2774.9,2774.6,3.60403]
[1724546043124,3.009,2774.9,2774.7,3.60397]
[1724546043529,3.009,2775.7,2774.9,3.60361]
[1724546043729,9.24471883,2775.8,2775.0,3.60359]
[1724546043730,3.009,2775.5,2775.0,3.60359]
[1724546044580,3.009,2775.5,2774.8,7.20761]
[1724546044787,3.009,2775.5,2774.8,3.60375]
[1724546046914,4.82821188,2775.6,2774.3,12.45]
[1724546046915,2.64213883,2775.2,2774.3,12.45]
[1724546047117,3.27321388,2775.1,2774.4,3.60425]
[1724546047322,3.27321388,2775.1,2774.2,14.6824515]
[1724546047323,3.009,2775.0,2774.2,14.6824515]
[1724546047609,3.009,2775.0,2774.3,3.60449]
[1724546047812,3.009,2774.9,2774.2,3.7378615]
[1724546048402,3.009,2774.9,2774.2,7.3424215]
[1724546049423,3.009,2774.9,2774.3,3.60447]
[1724546049626,3.009,2774.9,2774.4,3.60435]
[1724546051217,3.009,2774.9,2774.7,3.60398]
[1724546051428,3.1353,2775.4,2774.8,3.60386]
[1724546051603,3.1353,2775.4,2775.0,3.60352]
[1724546053529,3.1353,2775.4,2774.6,3.1991]
[1724546053739,3.1353,2775.4,2775.2,3.60331]
[1724546054516,3.1353,2775.4,2775.1,3.60346]
[1724546055075,3.1353,2775.4,2775.0,3.60353]
[1724546055630,3.1353,2775.4,2774.8,3.60377]
[1724546055834,3.1353,2775.4,2774.7,7.89]
[1724546056035,3.1353,2775.4,2774.7,8.679]
[1724546057221,3.1353,2775.4,2774.9,3.60373]
[1724546058765,3.1353,2775.4,2774.7,11.49397]
[1724546059461,3.1353,2775.4,2774.7,11.49391]
[1724546060050,3.0434,2775.2,2774.7,7.34]
[1724546060977,3.0434,2775.2,2774.5,3.60417]
[1724546061273,3.0434,2775.2,2774.6,3.60411]
[1724546062885,3.0434,2775.2,2774.7,3.60398]
[1724546063255,3.0434,2775.2,2775.1,3.60347]
[1724546063452,3.159,2775.7,2775.1,3.60347]
[1724546063641,4.03911388,2775.7,2775.3,3.60319]
[1724546064290,4.03911388,2775.7,2775.1,7.20683]
[1724546064442,4.03911388,2775.7,2775.2,3.6033]
[1724546065696,4.03911388,2775.7,2775.1,3.60336]
[1724546066874,3.159,2775.7,2775.2,3.60332]
[1724546067057,3.159,2775.7,2775.1,3.60336]
[1724546067058,3.159,2776.0,2775.6,3.60282]
[1724546067244,3.159,2776.0,2775.6,3.60273]
[1724546067448,3.159,2776.0,2775.6,0.360273]
[1724546067678,3.159,2776.0,2775.3,7.34]
[1724546067994,3.159,2776.0,2775.4,4.15306]
[1724546069584,3.159,2776.0,2775.4,7.75605]
[1724546069788,3.159,2776.0,2775.4,4.15299]
[1724546071346,3.159,2776.0,2775.3,7.34]
[1724546071653,7.437502,2776.0,2775.3,7.34]
[1724546071861,6.76139,2776.0,2775.3,7.34]
[1724546072465,3.0588,2775.9,2775.3,7.34]
[1724546073589,3.0588,2775.9,2775.3,10.94318]
[1724546073760,3.0588,2775.9,2775.3,7.34]
[1724546074847,3.0588,2775.8,2775.1,3.60345]
[1724546075293,3.0588,2775.8,2775.2,3.60334]
[1724546077797,3.0588,2775.8,2775.3,3.6032]
[1724546078407,3.0588,2775.8,2775.5,3.60294]
[1724546079813,3.0588,2775.8,2775.7,3.60269]
[1724546080318,3.0588,2775.8,2775.5,7.20578]
[1724546080523,3.0588,2775.8,2775.5,3.60284]
[1724546080700,3.0588,2775.8,2775.5,7.20571]
[1724546080895,3.0588,2775.8,2775.5,7.926309]
[1724546081271,3.0588,2775.8,2775.5,4.323439]
[1724546081614,3.0588,2775.8,2775.5,7.926319]
[1724546081780,3.0174,2776.3,2775.8,3.60248]
[1724546081984,3.0,2776.2,2775.7,3.60269]
[1724546082173,3.0174,2776.1,2775.7,3.60269]
[1724546082770,1.10038004,2775.9,2775.7,3.60269]
[1724546083220,1.10038004,2775.9,2775.6,0.55]
[1724546083591,1.10038004,2775.9,2775.6,4.1528]
[1724546084276,1.10038004,2775.9,2775.6,4.928365]
[1724546085917,1.10038004,2775.9,2775.6,1.325565]
[1724546086107,1.10038004,2775.9,2775.6,4.15279]
[1724546087528,1.10038004,2775.9,2775.6,0.55]
[1724546088419,3.0174,2775.8,2775.6,0.55]
[1724546089318,1.10038004,2775.7,2775.1,3.60338]
[1724546089897,3.0174,2775.7,2775.1,3.60338]
[1724546090084,3.0174,2775.7,2775.2,1.094338]
[1724546090422,4.11778004,2775.7,2775.2,1.094338]
[1724546090920,3.2436,2775.6,2775.2,4.697658]
[1724546092028,3.2436,2775.6,2775.3,3.60319]
[1724546094837,3.2436,2775.6,2775.3,3.60312]
[1724546096107,3.2436,2775.6,2775.4,3.60306]
[1724546098837,3.2436,2775.6,2775.2,7.20656]
[1724546099057,3.1157,2775.4,2775.0,10.94351]
[1724546099260,3.1157,2775.4,2775.1,3.60338]
[1724546100439,3.1157,2775.4,2775.2,3.60333]
[1724546102266,1.10038004,2775.3,2775.0,3.60354]
[1724546102465,1.10038004,2775.3,2775.0,3.60349]
[1724546102626,3.2024,2775.2,2775.0,3.60349]
[1724546103370,3.2024,2775.2,2775.1,3.60345]
[1724546104922,3.2024,2775.7,2775.1,1.270694]
[1724546105123,3.2024,2775.7,2775.5,3.60291]
[1724546106466,3.2024,2775.9,2775.8,3.60256]
[1724546106670,4.30278004,2775.9,2775.8,3.60256]
[1724546107468,3.2024,2776.2,2776.0,3.60229]
[1724546109126,3.2024,2776.2,2775.8,7.925482]
[1724546109327,1.10038004,2776.1,2775.8,3.60245]
[1724546110338,1.10038004,2776.1,2775.6,3.60271]
[1724546110629,1.10038004,2776.1,2775.7,4.1526]
[1724546110782,1.10038004,2776.1,2775.8,3.60253]
[1724546111691,3.2024,2776.2,2775.8,3.60253]
[1724546111908,3.0,2776.8,2776.3,3.60185]
[1724546111909,3.1358,2776.8,2776.3,3.60185]
[1724546112080,3.1358,2776.8,2776.5,3.60165]
[1724546112424,3.1358,2776.8,2776.5,3.60156]
[1724546112633,4.23618004,2777.1,2776.7,3.60139]
[1724546112845,3.12488726,2777.8,2776.7,3.60139]
[1724546112846,3.1358,2777.8,2776.9,3.60101]
[1724546113122,3.1358,2777.8,2777.2,3.6007]
[1724546113123,1.10038004,2777.4,2777.2,3.6007]
[1724546113513,1.10038004,2777.4,2776.8,3.60121]
[1724546113514,3.1358,2777.3,2776.8,3.60121]
[1724546113822,1.10038004,2777.2,2776.8,3.60117]
[1724546114031,6.72163702,2778.2,2777.2,3.60062]
[1724546114032,1.10038004,2777.4,2777.2,3.60062]
[1724546114234,1.10038004,2777.4,2777.0,3.6009]
[1724546114440,1.10038004,2777.4,2777.1,4.15079]
[1724546114639,5.77391742,2777.9,2777.1,4.15079]
[1724546114784,5.77391742,2777.9,2777.2,3.60074]
[1724546114983,0.93737074,2777.8,2777.2,3.60074]
[1724546115263,3.93737074,2777.8,2777.2,3.60074]
[1724546115788,3.93737074,2777.8,2777.1,0.55]
[1724546116093,3.93737074,2777.8,2777.1,4.15085]
[1724546116831,7.53734074,2777.8,2777.1,0.55]
[1724546117032,7.53734074,2777.8,2776.8,3.60126]
[1724546117033,6.66551,2777.6,2776.8,3.60126]
[1724546117241,3.60053,2777.4,2776.6,3.60147]
[1724546117531,3.60053,2777.4,2776.7,3.60138]
[1724546117703,3.0652,2777.5,2776.7,3.60138]
[1724546118102,3.0652,2777.5,2776.8,3.60126]
[1724546118298,4.48868632,2777.5,2776.8,3.60126]
[1724546118739,8.08904632,2777.5,2776.8,3.60126]
[1724546119740,8.08904632,2777.5,2776.7,3.60139]
[1724546120244,8.08904632,2777.5,2776.8,3.60126]
[1724546120806,5.02384632,2777.5,2776.8,3.60126]
[1724546121136,3.83139637,2777.4,2776.8,3.60126]
[1724546121727,3.83139637,2777.4,2776.8,3.60118]
[1724546122098,3.0652,2777.2,2776.6,7.34]
[1724546122347,3.0652,2777.1,2776.6,7.34]
[1724546122707,3.0652,2777.0,2776.6,7.34]
[1724546122916,3.0652,2777.0,2776.6,10.94149]
[1724546123338,3.0652,2777.0,2776.6,7.34]
[1724546124327,3.37172,2777.0,2776.6,7.34]
[1724546124996,3.0652,2776.7,2776.2,19.43]
[1724546125443,3.0652,2776.7,2776.5,3.60164]
[1724546126349,3.0652,2777.2,2776.6,3.60152]
[1724546126499,0.93039374,2777.1,2776.6,3.60152]
[1724546129040,3.0652,2777.2,2776.8,3.60118]
[1724546129645,3.0652,2777.2,2776.9,3.60108]
[1724546135746,3.0652,2777.2,2776.8,3.60124]
[1724546136634,3.0652,2777.2,2776.9,3.60112]
[1724546136835,3.0652,2777.2,2776.5,10.94159]
[1724546137027,3.60089,2777.1,2776.5,7.34]
[1724546137229,2.9979,2777.0,2776.5,7.34]
[1724546141258,2.9979,2777.0,2776.4,3.60178]
[1724546142378,2.9979,2777.0,2776.4,3.60169]
[1724546142674,2.9979,2776.9,2776.4,3.60169]
[1724546143168,2.9979,2776.9,2776.4,7.2034]
[1724546143743,2.9979,2776.9,2776.5,3.60164]
[1724546144078,2.9979,2776.9,2776.4,3.60169]
[1724546147528,2.9979,2776.9,2776.2,3.60198]
[1724546147529,2.9979,2776.6,2776.0,3.60222]
[1724546147734,2.9979,2776.6,2776.1,3.60209]
[1724546147965,2.9979,2776.6,2776.3,3.60186]
[1724546148885,2.9979,2776.6,2776.4,3.60173]
[1724546151910,2.9979,2776.6,2776.2,7.20394]
[1724546152194,2.9979,2776.6,2776.3,4.15189]
[1724546152996,2.9979,2776.6,2776.3,0.55]
[1724546157354,2.9979,2776.6,2775.8,10.94246]
[1724546157554,2.9979,2776.6,2775.8,14.54491]
[1724546157555,3.60164,2776.6,2775.8,14.54491]
[1724546157759,3.1207,2776.5,2775.9,1.454491]
[1724546158065,3.1207,2776.5,2775.9,5.056911]
[1724546158869,3.1207,2776.5,2776.0,0.55]
[1724546159286,3.1207,2776.5,2775.8,10.94245]
[1724546159287,3.1207,2776.3,2775.8,7.34]
[1724546159796,6.72263,2776.3,2775.8,7.34]
[1724546159999,3.1207,2776.3,2775.8,7.34]
[1724546160902,4.89817674,2776.3,2775.8,7.34]
[1724546161208,4.89817674,2776.3,2775.2,7.34]
[1724546161209,3.1207,2775.7,2775.2,7.34]
[1724546161355,3.1207,2775.7,2775.1,3.60347]
[1724546161356,3.1207,2775.6,2775.1,3.60347]
[1724546162893,3.1207,2775.6,2775.2,0.55]
[1724546163371,3.1207,2775.4,2774.8,3.60376]
[1724546163596,5.75881742,2775.4,2774.8,3.60376]
[1724546164159,3.1207,2775.3,2774.6,7.34]
[1724546164411,3.1207,2775.8,2775.3,3.60311]
[1724546164614,3.1207,2775.8,2775.2,3.60334]
[1724546164978,3.1207,2775.8,2775.3,0.55]
[1724546165177,3.1207,2775.8,2775.0,7.34]
[1724546165178,3.1207,2775.6,2775.0,7.34]
[1724546165512,3.1207,2775.5,2775.1,0.55]
[1724546165676,6.72378,2775.4,2775.0,7.34]
[1724546166007,3.1207,2775.4,2775.0,7.34]
[1724546168074,3.1207,2775.4,2774.8,3.60383]
[1724546168280,3.1207,2775.4,2774.9,0.55]
[1724546169766,4.635772,2775.4,2774.9,0.55]
[1724546169966,3.1207,2775.3,2774.7,4.15399]
[1724546170466,3.1207,2775.3,2774.7,0.55]
[1724546170667,6.72393,2775.3,2774.7,0.55]
[1724546170981,2.3028,2775.1,2774.7,0.55]
[1724546172870,4.94091742,2775.1,2774.7,0.55]
[1724546173071,2.3028,2775.0,2774.7,0.55]
[1724546174285,2.3028,2775.0,2774.6,0.55]
[1724546174488,2.3028,2775.0,2774.7,3.6039]
[1724546174792,2.3028,2775.0,2774.7,4.379713]
[1724546174987,2.3028,2775.0,2774.7,3.6039]
[1724546176110,2.3028,2775.0,2774.6,0.55]
[1724546177432,2.3028,2775.0,2774.7,3.60397]
[1724546178093,2.3028,2775.0,2774.6,0.55]
[1724546178291,2.3028,2775.0,2774.6,4.15411]
[1724546181347,2.3028,2775.0,2774.6,7.75815]
[1724546181922,2.3028,2775.0,2774.6,4.15404]
[1724546183515,2.3028,2775.0,2774.6,0.55]
[1724546183721,2.4506,2774.7,2774.2,0.1333315]
[1724546184145,2.63811742,2774.5,2774.2,0.1333315]
[1724546184461,2.4506,2774.4,2774.2,0.1333315]
[1724546184605,3.60451,2774.3,2774.2,0.1333315]
[1724546184950,6.05511,2774.3,2774.2,0.1333315]
[1724546185118,7.28486474,2774.3,2774.2,0.1333315]
[1724546185448,10.88937474,2774.3,2774.2,0.1333315]
[1724546185887,13.88937474,2774.3,2774.2,0.1333315]
[1724546191281,17.49388474,2774.3,2774.2,0.1333315]
[1724546192690,13.88937474,2774.3,2774.2,0.1333315]
[1724546194440,17.86849285,2774.3,2774.2,0.1333315]
[1724546196327,13.29759027,2774.3,2774.2,0.1333315]
[1724546196528,15.29773742,2774.3,2774.2,0.1333315]
[1724546198122,15.67195676,2774.3,2774.2,0.1333315]
[1724546198323,2.362,2773.6,2772.8,2.2529]
[1724546198652,6.24369742,2773.5,2772.9,0.55]
[1724546199772,2.362,2773.4,2772.9,0.55]
[1724546199916,3.22256974,2773.4,2772.9,0.55]
[1724546200120,3.22256974,2773.4,2772.7,7.34]
[1724546200121,2.362,2773.1,2772.7,7.34]
[1724546200764,2.362,2773.1,2772.5,3.60679]
[1724546201065,2.362,2773.1,2772.3,13.19992]
[1724546201276,2.63811742,2772.9,2772.2,3.60715]
[1724546201566,3.60598,2773.2,2772.0,7.34]
[1724546201567,2.362,2773.2,2772.6,3.6066]
[1724546201769,2.362,2773.2,2772.4,3.60693]
[1724546201770,2.362,2773.2,2772.5,3.60684]
[1724546202071,5.362,2773.2,2772.5,3.60684]
[1724546202371,6.96923072,2773.2,2772.6,3.6067]
[1724546202536,6.96923072,2773.2,2772.7,0.55]
[1724546203167,2.362,2773.3,2772.8,3.60637]
[1724546203372,5.362,2773.3,2772.8,3.60637]
[1724546203521,5.362,2773.3,2772.7,0.55]
[1724546203723,5.27280153,2773.3,2772.7,0.55]
[1724546203918,6.24344742,2773.7,2773.0,3.60619]
[1724546204176,6.24344742,2773.7,2773.1,0.55]
[1724546204177,3.0,2773.6,2773.1,0.55]
[1724546205128,10.21097,2773.6,2772.9,0.55]
[1724546205325,3.60576,2773.4,2772.9,0.55]
[1724546205567,3.60576,2773.4,2772.7,0.55]
[1724546205568,3.60581,2773.3,2772.7,0.55]
[1724546205861,2.63811742,2773.4,2772.6,3.6067]
[1724546206070,7.16825016,2773.4,2772.6,3.6067]
[1724546206671,3.0,2773.6,2773.0,3.60609]
[1724546206840,2.362,2773.6,2773.0,3.60609]
[1724546207021,5.362,2773.6,2773.0,3.60609]
[1724546207222,5.362,2773.6,2773.1,0.55]
[1724546207540,8.96742,2773.6,2773.1,0.55]
[1724546208037,5.362,2773.6,2773.1,0.55]
[1724546208272,2.362,2773.6,2773.1,0.55]
[1724546208551,5.96743,2773.6,2773.1,0.55]
[1724546208754,6.82798474,2773.6,2772.9,0.55]
[1724546208959,3.60562,2773.5,2772.9,0.55]
[1724546209176,3.60582,2773.3,2772.6,3.60667]
[1724546209323,2.362,2773.2,2772.6,3.60667]
[1724546209523,5.96794,2773.2,2772.5,2.2529]
[1724546209923,5.96794,2773.2,2772.5,5.85967]
[1724546210119,6.24388742,2773.4,2772.6,3.60663]
[1724546210377,6.24388742,2773.4,2772.9,3.60625]
[1724546210378,2.63811742,2773.4,2772.9,3.60625]
[1724546210878,2.63811742,2773.4,2773.0,4.15617]
[1724546211173,2.63811742,2773.4,2773.0,3.60617]
[1724546211523,2.63811742,2773.4,2772.9,0.55]
[1724546211823,2.63811742,2773.4,2772.9,4.932523]
[1724546212017,2.63811742,2773.4,2772.9,0.55]
[1724546212223,6.24381742,2773.4,2772.9,0.55]
[1724546212457,6.24381742,2773.4,2772.7,4.15657]
[1724546212966,6.24381742,2773.4,2772.7,4.15651]
[1724546213179,2.63811742,2773.4,2772.8,3.60645]
[1724546213328,2.63811742,2773.4,2772.9,4.932546]
[1724546213975,2.63811742,2773.4,2772.9,4.15625]
[1724546214175,2.362,2773.5,2773.0,3.60609]
[1724546214345,2.362,2773.5,2773.1,4.15606]
[1724546214685,3.0,2773.6,2773.1,4.15606]
[1724546215187,2.63811742,2773.7,2773.1,7.76197]
[1724546215326,2.63811742,2773.7,2773.1,5.180127]
[1724546215823,2.63811742,2773.7,2773.1,0.55]
[1724546215824,2.3699,2773.5,2773.1,0.55]
[1724546215958,5.97558,2773.5,2772.7,6.07163]
[1724546216169,5.97558,2773.5,2772.8,0.55]
[1724546216480,2.3699,2773.5,2772.8,0.55]
[1724546216638,5.00801742,2773.7,2773.1,3.60605]
[1724546216833,5.00801742,2773.7,2773.2,0.55]
[1724546217263,5.00801742,2773.7,2773.1,0.55]
[1724546217579,5.00801742,2773.7,2773.1,4.15603]
[1724546217775,5.00801742,2773.7,2773.1,7.397347]
[1724546218072,5.00801742,2773.7,2773.2,3.60591]
[1724546219033,5.00801742,2773.7,2773.1,3.791317]
[1724546219459,8.61331742,2773.7,2773.1,3.791317]
[1724546219662,5.00801742,2773.7,2773.1,3.791317]
[1724546219852,5.00801742,2773.7,2773.1,7.397337]
[1724546220801,5.00801742,2773.7,2773.1,1.326217]
[1724546220980,6.16933716,2773.7,2773.1,0.55]
[1724546221751,9.77469716,2773.7,2773.1,0.55]
[1724546222877,6.16933716,2773.7,2773.1,0.55]
[1724546223200,2.3699,2773.6,2773.1,0.55]
[1724546223550,2.3699,2773.3,2772.8,7.34]
[1724546223750,2.3699,2773.3,2772.8,10.94643]
[1724546224746,2.3699,2773.3,2772.8,14.55281]
[1724546225079,2.87070174,2773.3,2772.8,7.34]
[1724546225805,6.47652174,2773.3,2772.8,7.34]
[1724546226496,2.3699,2773.2,2772.8,7.34]
[1724546227105,2.3699,2773.2,2772.8,10.94646]
[1724546227281,2.3699,2773.2,2772.8,12.401768]
[1724546227793,2.3699,2773.2,2772.8,7.34]
[1724546227995,2.3699,2773.2,2772.6,3.60662]
[1724546228666,2.3699,2773.2,2772.7,3.60658]
[1724546232503,1.10282471,2772.8,2772.7,3.60658]
[1724546232837,3.39922471,2772.8,2772.7,3.60658]
[1724546235003,3.39922471,2772.8,2772.5,3.60683]
[1724546235330,1.10282471,2772.6,2772.4,3.60688]
[1724546236511,1.10282471,2772.6,2772.5,3.60685]
[1724546238618,1.10282471,2772.6,2772.3,3.60703]
[1724546238820,1.10282471,2772.4,2772.3,3.60703]
[1724546239019,1.10282471,2772.4,2772.3,4.15703]
[1724546239710,1.10282471,2772.4,2772.1,3.60732]
[1724546239918,1.10282471,2772.2,2772.1,3.60729]
[1724546243030,1.10282471,2772.2,2771.9,10.94753]
[1724546243259,2.4097,2772.1,2772.0,4.15747]
[1724546245783,2.4097,2772.1,2771.8,3.60766]
[1724546246864,1.10282471,2772.0,2771.8,3.60766]
[1724546247282,1.10282471,2772.0,2771.8,7.21535]
[1724546247451,1.10282471,2772.0,2771.8,3.60766]
[1724546247653,1.10282471,2772.0,2771.8,7.21532]
[1724546247857,1.10282471,2772.0,2771.8,3.60766]
[1724546248074,1.10282471,2772.0,2771.8,7.21534]
[1724546248243,1.10282471,2772.0,2771.8,3.60766]
[1724546249567,1.10282471,2772.0,2771.8,7.21534]
[1724546249783,1.10282471,2772.0,2771.8,3.60766]
[1724546250601,1.10282471,2772.0,2771.8,7.21534]
[1724546251512,1.10282471,2772.0,2771.8,3.60766]
[1724546252563,2.4097,2772.1,2771.8,7.21535]
[1724546252810,1.10282471,2772.0,2771.9,3.60762]
[1724546254713,1.10282471,2772.2,2771.9,3.60754]
[1724546255378,2.4101,2772.3,2772.0,0.07214614]
[1724546255577,4.07841152,2772.6,2772.3,3.60701]
[1724546255990,1.10282471,2772.4,2772.3,3.60701]
[1724546256517,1.10282471,2772.4,2772.2,3.60714]
[1724546257008,1.10282471,2772.6,2772.1,0.55]
[1724546257230,3.38612471,2773.0,2772.6,3.60664]
[1724546257365,3.38612471,2773.0,2772.7,0.55]
[1724546257565,1.10282471,2772.8,2772.7,0.55]
[1724546258710,1.10282471,2772.8,2772.4,3.60691]
[1724546258879,1.10282471,2772.8,2772.5,0.55]
[1724546259605,1.10282471,2772.8,2772.5,4.15674]
[1724546261213,1.10282471,2772.8,2772.6,3.60669]
[1724546261397,1.10282471,2772.8,2772.7,0.55]
[1724546262611,1.10282471,2772.8,2772.6,0.55]
[1724546265073,1.10282471,2772.9,2772.6,4.15669]
[1724546265370,1.10282471,2772.9,2772.6,0.55]
[1724546268378,3.40162471,2772.7,2772.6,0.55]
[1724546268817,3.40162471,2772.7,2772.5,0.55]
[1724546269919,3.40162471,2772.7,2772.3,7.34]
[1724546270769,3.40162471,2772.7,2772.3,10.94702]
[1724546271989,3.40162471,2772.7,2772.4,3.60697]
[1724546273179,3.74178718,2772.7,2772.4,3.60697]
[1724546274388,3.40162471,2772.7,2772.4,3.60697]
[1724546278583,2.4237,2772.4,2772.0,10.9474]
[1724546278786,1.10282471,2772.3,2772.1,4.15729]
[1724546279281,1.10282471,2772.3,2772.0,3.6074]
[1724546279485,1.10282471,2772.1,2772.0,3.6075]
[1724546280432,1.10282471,2772.1,2771.8,7.21532]
[1724546280629,2.4237,2772.0,2771.8,3.60764]
[1724546280830,1.10282471,2771.9,2771.8,3.60764]
[1724546281049,1.10282471,2771.9,2771.7,7.34]
[1724546283736,2.4237,2771.8,2771.7,7.34]
[1724546283883,2.4237,2771.8,2771.4,3.7415815]
[1724546283884,2.4237,2771.8,2771.4,7.3497515]
[1724546284090,2.4237,2771.8,2771.4,0.1333315]
[1724546284091,1.10282471,2771.5,2771.4,0.1333315]
[1724546284503,1.10282471,2771.5,2771.4,0.6833315]
[1724546286209,1.10282471,2771.5,2771.4,0.1333315]
[1724546286429,3.52652471,2771.5,2771.4,0.1333315]
[1724546289339,2.4237,2771.5,2771.4,0.1333315]
[1724546290240,1.10282471,2771.6,2771.4,0.1333315]
[1724546290438,1.10282471,2771.6,2771.5,3.60815]
[1724546291228,1.10282471,2771.8,2771.5,3.60815]
[1724546292678,2.4237,2771.9,2771.5,3.60815]
[1724546292972,2.66607,2771.9,2771.4,0.1333315]
[1724546293426,2.66607,2771.9,2771.4,3.7416115]
[1724546294241,2.4237,2771.9,2771.4,3.7416115]
[1724546294859,2.4237,2771.9,2771.4,0.1333315]
[1724546302054,6.03133,2771.9,2771.4,0.1333315]
[1724546302259,2.4461,2771.8,2771.4,0.1333315]
[1724546303071,2.4461,2771.8,2771.4,3.7416015]
[1724546306027,2.4461,2771.8,2771.4,0.1333315]
[1724546306482,2.95558606,2771.8,2771.4,0.1333315]
[1724546307190,4.11735606,2771.8,2771.4,0.1333315]
[1724546307341,6.05401,2771.7,2771.4,0.1333315]
[1724546307541,2.4461,2771.6,2771.4,0.1333315]
[1724546310496,2.4461,2771.6,2771.4,3.7416115]
[1724546310703,2.4461,2771.6,2771.4,0.1333315]
[1724546311208,2.4461,2771.6,2771.4,3.7415715]
[1724546312491,2.3662,2771.9,2771.4,3.7415715]
[1724546314362,3.22843407,2771.9,2771.4,0.1333315]
[1724546314565,3.47006718,2771.5,2771.4,0.1333315]
[1724546317808,2.3385,2771.9,2771.4,0.1333315]
[1724546318008,2.3385,2772.3,2771.7,3.60788]
[1724546318188,1.10386718,2772.0,2771.7,3.60788]
[1724546318388,1.10386718,2772.0,2771.8,0.55]
[1724546319178,2.3385,2772.3,2771.9,3.60762]
[1724546319388,1.10386718,2772.5,2772.2,3.60724]
[1724546319593,3.44236718,2772.5,2772.2,3.60724]
[1724546320079,3.44236718,2772.5,2772.2,7.21448]
[1724546320286,3.44236718,2772.5,2772.2,3.60724]
[1724546321978,1.10386718,2772.5,2772.2,4.38363]
[1724546322181,1.10386718,2772.5,2772.2,3.60716]
[1724546323212,2.3385,2772.4,2772.0,7.76484]
[1724546323934,2.3385,2772.4,2772.1,3.60737]
[1724546324099,2.3385,2772.4,2772.2,0.55]
[1724546324679,2.3385,2772.4,2772.2,4.15722]
[1724546326500,2.3385,2772.4,2772.2,0.55]
[1724546326700,2.3385,2772.4,2772.1,4.15736]
[1724546327329,3.44236718,2772.4,2772.2,3.60721]
[1724546327907,3.44236718,2772.4,2772.1,1.326477]
[1724546328120,6.60585,2773.3,2771.6,31.48185718]
[1724546328121,1.10386718,2772.2,2771.6,26.77]
[1724546328346,1.10386718,2772.0,2771.6,10.94791]
[1724546329330,1.10386718,2772.0,2771.7,0.55]
[1724546329886,1.10386718,2772.0,2771.7,4.15781]
[1724546332373,1.10386718,2772.0,2771.8,3.60774]
[1724546332789,2.2878,2771.9,2771.5,3.60811]
[1724546333090,2.2878,2771.9,2771.4,0.1333315]
[1724546333293,2.2878,2771.9,2771.8,3.60776]
[1724546333651,2.2878,2772.1,2771.8,7.21543]
[1724546333851,2.2878,2772.1,2771.8,3.60767]
[1724546338465,2.3607,2772.3,2772.0,3.60741]
[1724546338647,2.3607,2772.3,2772.1,4.15737]
[1724546338851,2.3607,2772.3,2771.8,7.21534]
[1724546339051,1.10386718,2772.2,2771.9,0.55]
[1724546341207,1.10386718,2772.2,2771.9,4.15761]
[1724546344410,1.10386718,2772.2,2771.9,0.55]
[1724546344614,1.10386718,2772.2,2771.8,0.55]
[1724546344811,1.10386718,2772.2,2771.8,3.60776]
[1724546345107,1.10386718,2772.2,2771.9,0.55]
[1724546351534,2.3607,2772.3,2771.9,0.55]
[1724546351739,2.3607,2772.3,2772.0,3.60742]
[1724546356817,2.459,2772.7,2772.3,3.60709]
[1724546357127,1.10386718,2772.6,2772.2,3.6072]
[1724546357326,1.10386718,2772.6,2772.3,0.55]
[1724546357995,1.10386718,2772.6,2772.2,0.55]
[1724546359315,2.459,2772.7,2772.3,3.60708]
[1724546359516,1.10386718,2772.9,2772.5,7.2136]
[1724546359813,1.10386718,2772.9,2772.6,0.55]
[1724546360212,2.459,2773.1,2772.6,0.55]
[1724546360213,1.10386718,2772.7,2772.6,0.55]
[1724546360628,1.10386718,2772.9,2772.6,0.55]
[1724546360862,2.459,2773.1,2772.7,0.07212793]
[1724546361047,2.459,2773.3,2772.8,0.55]
[1724546361230,2.459,2773.3,2772.9,3.60625]
[1724546361415,2.459,2773.3,2773.0,0.55]
[1724546362199,2.459,2773.3,2773.0,0.54911083]
[1724546362956,1.10386718,2773.2,2773.0,0.54911083]
[1724546363376,2.459,2773.3,2773.0,0.54911083]
[1724546363377,3.56286718,2773.3,2773.0,0.54911083]
[1724546364218,3.56286718,2773.3,2772.7,3.60655]
[1724546364219,1.10386718,2773.1,2772.7,3.60655]
[1724546364415,2.459,2773.0,2772.8,0.55]
[1724546365570,2.459,2773.0,2772.8,4.15645]
[1724546365873,2.459,2773.2,2772.8,4.15645]
[1724546366254,1.10386718,2773.3,2772.8,4.15645]
[1724546366633,2.459,2773.4,2772.9,3.60624]
[1724546366853,2.459,2773.4,2773.0,4.15619]
[1724546366854,3.56286718,2773.4,2773.0,4.15619]
[1724546367051,2.459,2773.4,2773.1,3.60607]
[1724546367252,2.459,2773.7,2773.2,0.55]
[1724546367423,1.10386718,2773.5,2773.2,0.55]
[1724546368256,2.459,2773.2,2772.9,3.60625]
[1724546368456,2.459,2773.2,2773.0,0.55]
[1724546368771,1.10386718,2773.3,2773.0,0.55]
[1724546369072,1.10386718,2773.3,2773.0,4.15619]
[1724546369231,1.10386718,2773.3,2773.0,0.55]
[1724546369431,1.10386718,2773.3,2773.0,4.15608]
[1724546370733,1.10386718,2773.3,2773.1,3.60602]
[1724546370933,1.10386718,2773.3,2773.2,4.15594]
[1724546371134,1.10386718,2773.5,2773.2,4.15594]